[Event "9th Porticcio Open 2024"]
[Site "Porticcio"]
[Date "2024.07.05"]
[Round "9.5"]
[White "Priansh Das"]
[Black "Yankelevich, Lev"]
[Result "1/2-1/2"]
[ECO "C55"]
[WhiteElo "2263"]
[BlackElo "2416"]
[Annotator "TA"]
[PlyCount "146"]
[EventDate "2024.07.01"]
[EventType "swiss"]
[EventCountry "FRA"]
[SourceTitle "playchess.com"]
[Source "ChessBase"]
[SourceQuality "1"]
[TimeControl "5400+30"]

{[%evp 15,146,-2,0,-12,-10,-25,-16,-31,-39,-41,-31,-34,-18,-10,-18,-35,-17,-13,-19,-10,-20,-14,-10,-24,-20,-52,-64,-59,-59,-135,-40,-43,-43,-46,-40,-79,-77,-91,-94,-83,-87,-93,-93,-93,-92,-100,-72,-72,-65,-65,-59,-70,0,-40,-22,-16,-21,-23,-21,-92,-92,-135,-135,-135,-17,-17,0,0,0,0,-11,-11,-11,-12,0,0,0,0,0,0,0,0,0,0,0,0,0,0,0,0,0,0,0,0,0,0,0,0,0,0,0,0,0,0,0,0,0,0,0,0,0,0,0,0,0,0,0,0,0,0,0,0,0,0,0,0,0,0,0,0,0,0,0]} 1. e4 {[%emt 0:00:03]} e5 {[%emt 0:00:58]} 2. Nf3 {[%emt 0:00:07]} Nc6 {[%emt 0:00:03]} 3. Bc4 {[%emt 0:00:06]} Nf6 {[%emt 0:00:06]} 4. d3 {[%emt 0:00:06]} Be7 {[%emt 0:03:36]} 5. O-O {[%emt 0:00:11]} O-O {[%emt 0:00:04]} 6. c3 {[%emt 0:00:03]} d5 {[%emt 0:08:54]} 7. exd5 {[%emt 0:00:17]} Nxd5 {[%emt 0:00:04]} 8. h3 {[%emt 0:02:00]} Nb6 {[%emt 0:05:37]} 9. Bb3 {[%emt 0:02:14]} Bf5 {[%emt 0:00:54]} 10. Re1 {[%emt 0:03:35]} Qxd3 {[%emt 0:01:33]} 11. Qxd3 {[%emt 0:01:07]} Bxd3 {[%emt 0:00:07]} 12. Nxe5 {[%emt 0:00:03]} Nxe5 {[%emt 0:00:08]} 13. Rxe5 {[%emt 0:00:05]} Bf6 {[%emt 0:04:00]} 14. Re1 {[%emt 0:01:10]} Rfe8 {[%emt 0:00:04]} 15. Rxe8+ {[%emt 0:01:48]} Rxe8 {[%emt 0:00:06]} 16. Be3 {[%emt 0:00:10]} Nc4 {[%emt 0:01:16]} 17. Bxc4 {[%emt 0:00:11]} Bxc4 {[%emt 0:00:02]} 18. Na3 {[%emt 0:00:46]} Ba6 {[%emt 0:03:18]} 19. Rd1 {[%emt 0:00:12]} b6 {[%emt 0:03:42]} 20. Rd7 {[%emt 0:02:42]} Be5 {[%emt 0:00:31]} 21. Rd1 {[%emt 0:06:51]} f5 {[%emt 0:03:29]} 22. g3 {[%emt 1:17:43]} ({White should try} 22. Bc1 $15) 22... Kf7 {[%emt 0:18:41]} (22... Bxg3 $1 $17 {...Be5 is the strong threat.} 23. Bxb6 axb6 24. fxg3 Re2 25. Rd8+ Kf7 26. Rd7+ Re7 27. Rxe7+ Kxe7) 23. Nc2 $15 {[%emt 0:00:00]} c5 {[%emt 0:01:28]} 24. Rd7+ {[%emt 0:00:00]} Re7 {[%emt 0:00:04]} 25. Rxe7+ {[%emt 0:00:00]} Kxe7 {[%emt 0:00:02][%mdl 4096] Endgame. KBB-KBN} 26. f4 {[%emt 0:00:00]} Bf6 {[%emt 0:02:12]} 27. Bd2 {[%emt 0:00:00]} Bc4 {[%emt 0:01:45]} 28. a3 {[%emt 0:00:00]} Kd6 {[%emt 0:02:37]} 29. Kf2 {[%emt 0:00:00]} Bd3 {[%emt 0:01:42]} 30. Ne1 {[%emt 0:00:00]} Be4 {[%emt 0:00:56]} 31. Nf3 {[%emt 0:00:00]} Kd5 {[%emt 0:16:17] Strongly threatening ...Bxf3.} 32. Ne5 {[%emt 0:00:00]} Bb1 {[%emt 0:03:17]} 33. Kf3 {[%emt 0:00:00]} Be4+ {[%emt 0:01:05]} (33... Ba2 $15) 34. Ke3 {[%emt 0:00:00]} g5 {[%emt 0:00:06]} 35. c4+ {[%emt 0:00:00]} Ke6 {[%emt 0:00:06]} 36. Bc3 {[%emt 0:00:00]} gxf4+ {[%emt 0:06:13]} 37. gxf4 {[%emt 0:00:00]} (37. Kxf4 $11 Be7 38. Nf3) 37... Bg2 $17 {[%emt 0:01:21]} 38. Nf3 {[%emt 0:00:00] [#]} Bxc3 $1 {[%emt 0:01:02]} (38... Bxh3 39. Ng5+ Bxg5 40. fxg5 $17) 39. bxc3 {[%emt 0:00:00] [#] KB-KN} h6 {[%emt 0:01:38]} (39... Bxh3 $2 {perishes.} 40. Ng5+ Ke7 41. Nxh3 $18) (39... Bf1 $1 $17 40. Ng5+ Ke7) 40. h4 $11 {[%emt 0:00:00] The position is equal.} Bxf3 {[%emt 0:01:16]} 41. Kxf3 {[%emt 0:00:00] KP-KP} Kd6 {[%emt 0:00:36] White must now prevent ...Kc6.} 42. Ke3 {[%emt 0:00:00]} Kc6 {[%emt 0:00:06] And now ...b5 would win.} 43. a4 {[%emt 0:00:00]} a6 {[%emt 0:00:35]} 44. Kd3 {[%emt 0:00:00]} b5 {[%emt 0:00:16]} 45. cxb5+ {[%emt 0:01:55]} axb5 {[%emt 0:00:02]} 46. axb5+ {[%emt 0:00:25]} Kxb5 {[%emt 0:00:01] ...h5 would now be deadly. K3P-K3P} 47. h5 {[%emt 0:00:06]} Kb6 {[%emt 0:00:41]} 48. Kc2 {[%emt 0:02:26]} c4 {[%emt 0:02:37]} 49. Kc1 {[%emt 0:00:28]} Kc6 {[%emt 0:02:15]} (49... Kc5 $5 50. Kd2 $8 Kc6 $11) 50. Kd2 {[%emt 0:00:13]} Kb5 {[%emt 0:02:13]} 51. Kc2 {[%emt 0:00:30]} Ka5 {[%emt 0:00:26]} 52. Kc1 {[%emt 0:00:14]} Kb6 {[%emt 0:00:22]} 53. Kc2 {[%emt 0:00:38]} Kc6 {[%emt 0:01:02]} 54. Kd2 {[%emt 0:00:06]} Kd6 {[%emt 0:00:18]} 55. Ke2 {[%emt 0:00:21]} Kd5 {[%emt 0:00:31]} 56. Ke3 {[%emt 0:00:21]} Kc5 {[%emt 0:00:06]} 57. Kd2 $1 {[%emt 0:00:05]} Kc6 {[%emt 0:00:25]} 58. Ke3 {[%emt 0:00:36]} Kd5 {[%emt 0:00:24]} (58... Kc5 $5) 59. Kf3 {[%emt 0:00:05]} Kc6 {[%emt 0:01:13]} 60. Ke3 {[%emt 0:00:20] Intending Kd4 and mate.} Kc5 {[%emt 0:00:06]} (60... Kd5 $5) 61. Kd2 $1 {[%emt 0:00:05]} Kb5 {[%emt 0:00:11]} (61... Kc6 $5) 62. Kc1 {[%emt 0:00:15]} Ka4 {[%emt 0:00:04]} (62... Kc6 $5 63. Kd2 $8 $11) 63. Kb2 {[%emt 0:00:04]} Ka5 {[%emt 0:00:05]} 64. Kc1 {[%emt 0:00:09]} Kb5 {[%emt 0:00:15]} (64... Ka4 $5 65. Kb2 $8 Ka5 $11) 65. Kc2 {[%emt 0:00:05]} Kb6 {[%emt 0:01:20]} 66. Kc1 {[%emt 0:00:12]} Kc6 {[%emt 0:00:22]} 67. Kd2 {[%emt 0:00:05]} Kc5 {[%emt 0:01:22]} 68. Ke3 {[%emt 0:00:10]} Kd5 {[%emt 0:00:03]} 69. Kf3 {[%emt 0:00:04]} Kc6 {[%emt 0:00:03] ( -> ...Kb5)} 70. Ke3 {[%emt 0:00:10] White threatens Kd4 and mate.} Kc5 {[%emt 0:00:09]} (70... Kd5 $5) 71. Kd2 $1 {[%emt 0:00:06]} Kc6 {[%emt 0:00:16]} 72. Ke3 {[%emt 0:00:10] Kd4 would kill now.} Kc5 {[%emt 0:00:07]} (72... Kd5 $5) 73. Kd2 $1 {[%emt 0:00:06]} Kb5 {[%emt 0:00:14] Weighted Error Value: White=0.08 (flawless) /Black=0.10 (very precise) .  Mistake:       	White=2     	Black=3      Inaccurate:     	White=4     	---        OK:         	White=24    	Black=21     Best:        	White=14    	Black=10     Strong:       	White=4     	Black=1} (73... Kc6 $5) 1/2-1/2

[Event "9th Porticcio Open 2024"]
[Site "Porticcio"]
[Date "2024.07.05"]
[Round "9.6"]
[White "Kavutskiy, Konstantin"]
[Black "Nevednichy, Vladislav"]
[Result "0-1"]
[ECO "E90"]
[WhiteElo "2345"]
[BlackElo "2471"]
[Annotator "RC"]
[PlyCount "82"]
[EventDate "2024.07.01"]
[EventType "swiss"]
[EventCountry "FRA"]
[SourceTitle "playchess.com"]
[Source "ChessBase"]
[SourceQuality "1"]
[TimeControl "5400+30"]

1. d4 {[%emt 0:04:13]} g6 {[%emt 0:00:15]} 2. c4 {[%emt 0:01:01]} Bg7 {[%emt 0:00:06]} 3. Nf3 {[%emt 0:00:23]} d6 {[%emt 0:00:21]} 4. Nc3 {[%emt 0:01:18]} Nd7 {[%emt 0:05:43]} 5. e4 {[%emt 0:01:50]} e5 {[%emt 0:00:15]} 6. Be2 {[%emt 0:03:14]} Ngf6 {[%emt 0:00:30]} 7. d5 {[%emt 0:01:03]} a5 {[%emt 0:01:17]} 8. h3 {[%emt 0:01:34]} Nc5 {[%emt 0:00:42]} 9. Qc2 {[%emt 0:00:24]} Nh5 {[%emt 0:03:47]} 10. Bg5 {[%emt 0:07:33]} f6 {[%emt 0:05:16]} 11. Be3 {[%emt 0:00:11]} O-O {[%emt 1:17:48]} 12. Bxc5 {[%emt 0:01:30]} dxc5 {[%emt 0:00:00]} 13. O-O-O {[%emt 1:12:46]} f5 {[%emt 0:00:00]} 14. g3 {[%emt 0:00:00]} Nf6 {[%emt 0:00:00]} 15. Bd3 {[%emt 0:00:00]} fxe4 {[%emt 0:00:00]} 16. Nxe4 {[%emt 0:00:00]} Nxe4 {[%emt 0:00:00]} 17. Bxe4 {[%emt 0:00:00]} Ra6 {[%emt 0:00:00]} 18. Kb1 {[%emt 0:00:00]} Rb6 {[%emt 0:00:00]} 19. Rd3 {[%emt 0:00:00]} Bf5 {[%emt 0:00:00]} 20. Qe2 {[%emt 0:00:00]} a4 {[%emt 0:00:00]} 21. h4 {[%emt 0:00:00]} Bg4 {[%emt 0:00:00]} 22. Rc1 {[%emt 0:00:00]} Rbf6 {[%emt 0:00:00]} 23. Rcc3 {[%emt 0:00:00]} Qe8 {[%emt 0:00:00]} 24. Qc2 {[%emt 0:00:00]} b5 {[%emt 0:00:00]} 25. cxb5 {[%emt 0:00:00]} c4 {[%emt 0:00:00]} 26. Rxc4 {[%emt 0:00:00]} Qxb5 {[%emt 0:00:00]} 27. Rcc3 {[%emt 0:00:00]} Qb4 {[%emt 0:00:00]} 28. Qe2 {[%emt 0:00:00]} Bh6 {[%emt 0:00:00]} 29. a3 {[%emt 0:00:00]} Qb5 {[%emt 0:00:00]} 30. Qc2 {[%emt 0:00:00]} Bg7 {[%emt 0:00:00]} 31. Ka2 {[%emt 0:00:00]} Kh8 {[%emt 0:00:00]} 32. Rc5 {[%emt 0:00:00]} Qb6 {[%emt 0:00:00]} 33. Rc6 {[%emt 0:00:00]} Rxc6 {[%emt 0:00:00]} 34. dxc6 {[%emt 0:00:00]} Qb5 {[%emt 0:04:28]} 35. Qd2 {[%emt 0:02:14]} Qc4+ {[%emt 0:00:08]} 36. Ka1 {[%emt 0:00:54]} Qxe4 {[%emt 0:00:04]} 37. Ng5 {[%emt 0:00:08]} Qh1+ {[%emt 0:00:12]} 38. Ka2 {[%emt 0:00:06]} Qxc6 {[%emt 0:00:10]} 39. Rd8 {[%emt 0:00:44]} Be6+ {[%emt 0:00:32]} 40. Kb1 {[%emt 0:00:20]} Bf5+ {[%emt 0:00:56]} 41. Ka1 {[%emt 0:00:19]} Qh1+ {[%emt 0:00:53]} 0-1

[Event "9th Porticcio Open 2024"]
[Site "Porticcio"]
[Date "2024.07.05"]
[Round "9.7"]
[White "Derige Kane, Yan"]
[Black "Relange, Eloi"]
[Result "1/2-1/2"]
[ECO "B07"]
[WhiteElo "2237"]
[BlackElo "2442"]
[Annotator "TA"]
[PlyCount "97"]
[EventDate "2024.07.01"]
[EventType "swiss"]
[EventCountry "FRA"]
[SourceTitle "playchess.com"]
[Source "ChessBase"]
[SourceQuality "1"]
[TimeControl "5400+30"]

{[%evp 10,96,44,38,48,32,41,30,39,30,29,29,40,35,44,33,41,37,117,112,118,119,168,120,224,229,360,142,335,107,98,96,119,112,105,90,75,77,76,79,147,162,147,62,71,71,51,64,52,53,92,8,8,8,10,8,8,8,8,8,90,8,8,0,0,0,0,0,0,0,0,0,0,0,0,0,0,0,0,0,0,0,0,0,0,0,0,0,0]} 1. e4 {[%emt 0:14:22]} d6 {[%emt 0:00:21]} 2. d4 {[%emt 0:00:26]} Nf6 {[%emt 0:00:09]} 3. Nc3 {[%emt 0:00:48]} e5 {[%emt 0:00:09]} 4. dxe5 {[%emt 0:00:41]} dxe5 {[%emt 0:00:06]} 5. Qxd8+ {[%emt 0:00:07]} Kxd8 {[%emt 0:00:04]} 6. Bc4 {[%emt 0:00:06]} Ke8 {[%emt 0:00:22]} 7. f4 {[%emt 0:00:27]} Bb4 {[%emt 0:03:01]} 8. Bd3 {[%emt 0:00:19]} Nbd7 {[%emt 0:04:09][%cal Bb8d7,Bd7c5,Bc5d3][%mdl 32] White has an edge.} 9. Nf3 {[%emt 0:02:45]} Nc5 {[%emt 0:01:01]} 10. O-O $1 {[%emt 0:07:31]} Bxc3 {[%emt 0:18:08]} 11. bxc3 {[%emt 0:00:20]} Nfxe4 {[%emt 0:00:08]} 12. Re1 {[%emt 0:10:39]} Nxd3 {[%emt 0:12:04]} (12... Nxc3 $2 13. Rxe5+ Ne6 14. f5 $18) 13. cxd3 {[%emt 0:04:23]} Nxc3 {[%emt 0:01:33]} ({Black should try} 13... Nd6 $1 $14) 14. Bb2 $1 $16 {[%emt 0:01:42]} Na4 {[%emt 0:00:16]} 15. Bxe5 {[%emt 0:00:34]} (15. Rxe5+ Be6) 15... Kf8 {[%emt 0:00:46] Black is weak on the dark squares} (15... f6 $16 {keeps fighting.}) 16. Rac1 $1 $18 {[%emt 0:03:23]} h6 {[%emt 0:06:21]} (16... f6 $16 {was necessary.}) 17. Rxc7 {[%emt 0:02:50]} Kg8 {[%emt 0:01:27]} (17... Nb6 $142 18. Bd6+ Kg8 19. Re8+ Kh7 20. Rxh8+ (20. Bf8 Be6 $14) 20... Kxh8 21. Rxf7 Kg8) 18. Rec1 $2 {[%emt 0:02:47]} (18. Bd4 $18 {is more deadly.} Bg4 19. Ne5 (19. Rxb7 Rd8 $18)) 18... Be6 $2 {[%emt 0:02:10] [#]} (18... Nb6 $16 19. a4 f6) 19. Rxb7 $2 {[%emt 0:00:13]} (19. Nd4 $1 $18 {[%cal Rd4e6] Nxe6 is the strong threat.} Re8 20. Rxb7) 19... Kh7 $16 {[%emt 0:00:27]} 20. Rcc7 {[%emt 0:05:48] White has more active pieces.} a5 {[%emt 0:09:51]} 21. a3 {[%emt 0:00:32]} Rhc8 {[%emt 0:04:03]} 22. Nd4 {[%emt 0:03:19]} Bd5 {[%emt 0:03:16]} 23. Rxc8 {[%emt 0:03:20]} Rxc8 {[%emt 0:00:10]} 24. Rc7 {[%emt 0:00:03]} Rb8 {[%emt 0:01:14]} (24... Rxc7 $142 25. Bxc7 Nc5) 25. Nf5 {[%emt 0:03:25]} Rb3 {[%emt 0:01:03]} 26. Nxg7 {[%emt 0:02:04]} (26. Bxg7 Rxd3 27. Be5 (27. Bxh6 Rxa3 28. Bg7 Ra2 $14) 27... Nb6) (26. Ne3 $16 Be6 27. f5 Rb1+ 28. Kf2) 26... Nb2 $1 $14 {[%emt 0:05:53] [#]} 27. Rc3 {[%emt 0:04:20] Rxb3 would now be deadly.} Nxd3 {[%emt 0:01:01]} 28. Rxb3 {[%emt 0:03:08]} Bxb3 $16 {[%emt 0:00:08][%mdl 4096] Endgame. KBN-KBN} 29. Nf5 $1 {[%emt 0:00:51]} Kg6 {[%emt 0:02:39]} 30. Ne3 {[%emt 0:01:54]} (30. Ne7+ $16 Kh7 31. Bc3) 30... Nxe5 $11 {[%emt 0:03:30]} 31. fxe5 {[%emt 0:00:01] KB-KN} f6 {[%emt 0:00:14]} 32. exf6 {[%emt 0:00:29]} Kxf6 {[%emt 0:00:04]} 33. Kf2 {[%emt 0:00:18]} Ke5 $1 {[%emt 0:00:29]} 34. Ke2 {[%emt 0:01:13]} Kd4 {[%emt 0:00:36]} (34... Ke4 $1 $11) 35. Kd2 {[%emt 0:00:26]} (35. Nf5+ $16 Ke5 36. Nxh6) 35... Be6 {[%emt 0:00:12] The position is equal.} 36. g4 {[%emt 0:07:00]} Ke4 {[%emt 0:01:48]} 37. h4 {[%emt 0:00:06]} Kf4 {[%emt 0:00:44]} 38. g5 {[%emt 0:00:05]} hxg5 {[%emt 0:01:08]} 39. hxg5 {[%emt 0:00:06]} Kxg5 {[%emt 0:00:03]} 40. Kc3 {[%emt 0:00:08]} Kf6 {[%emt 0:01:24]} 41. Nc4 {[%emt 0:00:35]} Bxc4 {[%emt 0:00:10]} 42. Kxc4 {[%emt 0:00:04] KP-KP} Ke7 {[%emt 0:00:08]} 43. Kb5 {[%emt 0:00:08]} Kd8 {[%emt 0:00:04]} 44. Kxa5 {[%emt 0:00:08]} Kc8 {[%emt 0:00:04]} 45. Kb6 {[%emt 0:00:12]} Kb8 {[%emt 0:00:04]} 46. a4 {[%emt 0:00:03][%cal Ba3a4,Ba4a5,Ba5a6,Ba6a7][%mdl 32]} Ka8 {[%emt 0:00:02]} 47. a5 {[%emt 0:00:04]} Kb8 {[%emt 0:00:03]} 48. a6 {[%emt 0:00:04]} Ka8 {[%emt 0:00:02]} 49. a7 {[%emt 0:00:05] Blacks defense is rewarded with a draw.   Weighted Error Value: White=0.21 (precise) /Black=0.22 (precise) .  Loses game:     	---       	Black=1      Missed win:     	White=2     	---        Mistake:       	White=3     	Black=6      Inaccurate:     	---       	Black=1      OK:         	White=14    	Black=16     Best:        	White=2     	Black=5      Strong:       	White=4     	Black=2} 1/2-1/2

[Event "9th Porticcio Open 2024"]
[Site "Porticcio"]
[Date "2024.07.05"]
[Round "9.8"]
[White "Kuru, Atilla"]
[Black "Terrieux, Kevin"]
[Result "1/2-1/2"]
[ECO "C68"]
[WhiteElo "2314"]
[BlackElo "2408"]
[Annotator "TA"]
[PlyCount "134"]
[EventDate "2024.07.01"]
[EventType "swiss"]
[EventCountry "FRA"]
[SourceTitle "playchess.com"]
[Source "ChessBase"]
[SourceQuality "1"]
[TimeControl "5400+30"]

{[%evp 57,134,0,0,0,0,0,0,0,0,0,12,0,0,0,2,0,0,0,0,0,0,0,90,75,89,0,8,0,0,0,0,0,2,0,4,0,0,0,0,0,0,0,0,0,0,0,0,0,0,0,0,0,0,0,0,0,0,0,0,0,4,4,4,4,4,4,4,0,0,0,0,0,0,0,0,0,0,0,29985]} 1. e4 {[%emt 0:07:48]} e5 {[%emt 0:08:27]} 2. Nf3 {[%emt 0:01:01]} Nc6 {[%emt 0:00:03]} 3. Bb5 {[%emt 0:01:17]} a6 {[%emt 0:00:15]} 4. Bxc6 {[%emt 0:01:37]} dxc6 {[%emt 0:00:04]} 5. Nc3 {[%emt 0:00:16]} Bg4 {[%emt 0:31:09]} 6. h3 {[%emt 0:00:22]} Bxf3 {[%emt 0:00:18]} 7. Qxf3 {[%emt 0:00:03]} Qf6 {[%emt 0:03:09]} 8. Qg3 {[%emt 1:22:06]} Ne7 {[%emt 0:02:16] C68: Ruy Lopez: Exchange Variation, sidelines.} 9. d3 {[%emt 0:00:00]} Ng6 {[%emt 0:00:20]} 10. Bg5 $146 {[%emt 0:00:00]} ({Predecessor:} 10. Be3 Be7 11. O-O-O O-O-O 12. Ne2 c5 13. f4 exf4 14. Nxf4 Nxf4 15. Bxf4 Rd7 16. Rhf1 {1-0 Isepy,J-Kiss,G HUN-chT2 9495 1994}) 10... Qe6 {[%emt 0:01:09]} 11. Qg4 {[%emt 0:00:00]} Qd7 {[%emt 0:17:40]} 12. O-O-O {[%emt 0:00:00]} Bc5 {[%emt 0:05:57]} 13. Be3 {[%emt 0:00:00]} Qxg4 {[%emt 0:26:13]} 14. hxg4 {[%emt 0:03:00]} Bxe3+ {[%emt 0:00:00]} 15. fxe3 {[%emt 0:00:00]} f6 {[%emt 0:00:00]} 16. Ne2 {[%emt 0:00:00]} c5 {[%emt 0:00:00]} 17. Ng3 {[%emt 0:00:00]} Nf8 {[%emt 0:00:00]} 18. d4 {[%emt 0:00:00]} cxd4 {[%emt 0:00:00]} 19. exd4 {[%emt 0:00:00]} exd4 {[%emt 0:00:00]} 20. Rxd4 {[%emt 0:00:00]} Ne6 {[%emt 0:00:00]} 21. Rd2 {[%emt 0:00:00]} Rd8 {[%emt 0:00:00]} 22. Rxd8+ {[%emt 0:00:00]} Kxd8 {[%emt 0:00:00]} 23. Kd2 {[%emt 0:00:00]} Ke7 {[%emt 0:00:00]} 24. Ke3 {[%emt 0:00:00]} Kf7 {[%emt 0:00:00]} 25. Nf5 {[%emt 0:00:00]} g6 {[%emt 0:00:00]} 26. Nh4 {[%emt 0:00:00]} Re8 {[%emt 0:00:00]} 27. Nf3 {[%emt 0:00:00]} Kg7 {[%emt 0:00:00]} 28. Rd1 {[%emt 0:00:00]} Re7 {[%emt 0:00:00]} 29. Rd5 {[%emt 0:00:00]} Kf7 {[%emt 0:00:00]} 30. b4 {[%emt 0:00:00]} c6 {[%emt 0:00:00]} 31. Rd6 {[%emt 0:00:00]} Nc7 {[%emt 0:00:00]} 32. c4 {[%emt 0:00:00]} h6 {[%emt 0:02:41]} 33. a3 {[%emt 0:00:00]} Re6 {[%emt 0:02:36]} 34. Rd8 {[%emt 0:00:00]} Re8 {[%emt 0:00:12]} 35. Rd1 {[%emt 0:00:00]} Re7 {[%emt 0:00:55]} 36. Rh1 {[%emt 0:00:00]} Kg7 {[%emt 0:00:06]} 37. Rf1 {[%emt 0:00:00]} Ne6 {[%emt 0:00:53]} 38. Rd1 {[%emt 0:00:00]} Kf7 {[%emt 0:00:28]} 39. Rd6 {[%emt 0:00:00]} Ng5 {[%emt 0:02:08]} (39... a5 $11) 40. Nxg5+ $16 {[%emt 0:00:00]} hxg5 {[%emt 0:00:08]} 41. Kf3 {[%emt 0:00:00]} (41. Kd4 $16) 41... Re6 {[%emt 0:00:47]} 42. Rd1 {[%emt 0:00:00]} Re7 {[%emt 0:00:13]} 43. Rh1 {[%emt 0:00:00]} Kg7 {[%emt 0:00:06]} 44. Rd1 {[%emt 0:00:00]} Kf7 {[%emt 0:00:01]} 45. a4 {[%emt 0:00:00]} Ke6 {[%emt 0:02:37]} 46. Rh1 {[%emt 0:00:00]} a5 {[%emt 0:01:13]} 47. bxa5 {[%emt 0:00:00]} Kd6 {[%emt 0:00:01]} 48. Rb1 {[%emt 0:00:00]} Kc5 {[%emt 0:00:48]} 49. Rb6 {[%emt 0:00:00]} Rc7 {[%emt 0:00:23]} (49... Kxc4 $6 50. a6 bxa6 51. Rxc6+ Kd4 52. Rxf6 $16 (52. Rxa6 Rc7 $16)) 50. Ke3 {[%emt 0:00:00]} Rd7 {[%emt 0:00:50]} 51. Rb1 {[%emt 0:00:00]} Re7 {[%emt 0:01:21]} (51... Kxc4 $6 52. Rc1+ Kb4 53. a6 $14) 52. Kd3 {[%emt 0:00:00]} Rd7+ {[%emt 0:00:06]} 53. Kc3 {[%emt 0:00:00]} Re7 {[%emt 0:00:05]} 54. Re1 {[%emt 0:00:00]} Re5 {[%emt 0:00:31]} 55. Rb1 {[%emt 0:00:00]} Re7 {[%emt 0:00:30]} 56. Rb2 {[%emt 0:00:00]} Rxe4 {[%emt 0:01:20]} 57. Rxb7 {[%emt 0:00:00]} Rxc4+ {[%emt 0:00:18]} 58. Kb3 {[%emt 0:22:00]} Re4 {[%emt 0:00:38]} 59. a6 {[%emt 0:00:00]} Re3+ $1 {[%emt 0:00:03]} (59... Rxg4 60. a7 Rg3+ 61. Ka2 Rxg2+ 62. Rb2 Rxb2+ 63. Kxb2 $18) 60. Ka2 {[%emt 0:00:00]} Re4 {[%emt 0:00:37]} 61. Ka3 {[%emt 0:00:00]} Re3+ {[%emt 0:00:22]} 62. Ka2 {[%emt 0:00:00]} Re4 {[%emt 0:00:09]} 63. Kb3 {[%emt 0:00:00]} Re3+ $1 {[%emt 0:00:06]} (63... Rxg4 64. a7 Rg3+ 65. Ka2 Rxg2+ 66. Rb2 Rxb2+ 67. Kxb2 $18) 64. Kb2 {[%emt 0:00:00]} Re4 {[%emt 0:00:07]} 65. Kb3 {[%emt 0:00:00]} (65. Ka3 $5 Re3+ $8 66. Rb3 Rxb3+ 67. Kxb3 $11) 65... Re3+ $1 {[%emt 0:00:06]} (65... Rxg4 66. a7 Rg3+ 67. Ka2 Rxg2+ 68. Rb2 Rxb2+ 69. Kxb2 $18) 66. Kb2 {[%emt 0:00:00]} Re4 {[%emt 0:00:05]} 67. Kb3 {[%emt 0:00:00]} Rf4 $2 {[%emt 0:03:30][%mdl 8192]} (67... Rxg4 $2 {too greedy.} 68. a7 Rg3+ 69. Ka2 Rxg2+ 70. Rb2 Rxb2+ 71. Kxb2 $18) (67... Re3+ $11 68. Ka2) 1/2-1/2